[Event "47th GRE-chT 2019"]
[Site "Patra"]
[Date "2019.07.05"]
[Round "6.19"]
[White "Krallis, Christos"]
[Black "Kolyvas-Dimitrakarakos, Panagiot"]
[Result "1-0"]
[ECO "E66"]
[WhiteElo "2209"]
[BlackElo "1468"]
[Annotator "NA"]
[PlyCount "77"]
[EventDate "2019.07.02"]
[EventCountry "GRE"]
[SourceTitle "playchess.com"]
[Source "ChessBase"]
[SourceQuality "1"]
[TimeControl "5400+30"]

1. Nf3 {[%emt 0:00:20]} Nf6 {[%emt 0:00:11]} 2. c4 {[%emt 0:00:26]} g6 {[%emt 0:00:34]} 3. g3 {[%emt 0:00:14]} Bg7 {[%emt 0:00:44]} 4. Bg2 {[%emt 0:00:09]} O-O {[%emt 0:01:45]} 5. O-O {[%emt 0:00:45]} c5 {[%emt 0:02:23]} 6. d4 {[%emt 0:00:25]} d6 {[%emt 0:01:01]} 7. Nc3 {[%emt 0:00:08]} Nc6 {[%emt 0:00:33]} 8. d5 {[%emt 0:00:55]} Na5 {[%emt 0:00:12]} 9. Nd2 {[%emt 0:00:55]} Re8 {[%emt 0:05:36]} 10. a3 {[%emt 0:02:31]} b6 {[%emt 0:01:48]} 11. e4 {[%emt 0:01:26]} Rb8 {[%emt 0:08:06]} 12. b4 {[%emt 0:04:36]} Nb7 {[%emt 0:02:10]} 13. Bb2 {[%emt 0:00:47]} e5 {[%emt 0:11:26]} 14. Nb5 {[%emt 0:02:44]} Ra8 {[%emt 0:07:02]} 15. h3 {[%emt 0:01:33]} Nh5 {[%emt 0:10:16]} 16. Kh2 {[%emt 0:00:48]} a6 {[%emt 0:00:25]} 17. Nc3 {[%emt 0:00:06]} Bd7 {[%emt 0:02:39]} 18. b5 {[%emt 0:04:12]} Na5 {[%emt 0:06:26]} 19. Bf3 {[%emt 0:03:22]} Nf6 {[%emt 0:04:27]} 20. Qe2 {[%emt 0:00:44]} Qc8 {[%emt 0:07:25]} 21. Bg2 {[%emt 0:02:49]} Nh5 {[%emt 0:01:18]} 22. bxa6 {[%emt 0:00:14]} Rxa6 {[%emt 0:03:48]} 23. Nb5 {[%emt 0:01:35]} Nb7 {[%emt 0:00:24]} 24. Rae1 {[%emt 0:02:45]} Ra8 {[%emt 0:09:28]} 25. Nb1 {[%emt 0:02:32]} f5 {[%emt 0:06:16]} 26. exf5 {[%emt 0:00:28]} Bxf5 {[%emt 0:00:16]} 27. N1c3 {[%emt 0:01:12]} Nf6 {[%emt 0:00:28]} 28. Bc1 {[%emt 0:02:32]} Nd7 {[%emt 0:03:12]} 29. g4 {[%emt 0:00:09]} Nf6 {[%emt 0:01:20]} 30. gxf5 {[%emt 0:00:07]} gxf5 {[%emt 0:00:04]} 31. f4 {[%emt 0:01:06]} e4 {[%emt 0:00:14]} 32. Nd1 {[%emt 0:00:07]} Qd7 {[%emt 0:01:50]} 33. Ne3 {[%emt 0:00:10]} Rf8 {[%emt 0:00:40]} 34. Bb2 {[%emt 0:03:08]} Ne8 {[%emt 0:00:42]} 35. Bxg7 {[%emt 0:00:12]} Nxg7 {[%emt 0:00:13]} 36. Rg1 {[%emt 0:00:40]} Na5 {[%emt 0:00:32]} 37. Bh1 {[%emt 0:00:13]} Rf7 {[%emt 0:00:50]} 38. Qb2 {[%emt 0:00:09]} Rb8 {[%emt 0:01:00]} 39. Nxd6 {[%emt 0:00:08]} 1-0

[Event "47th GRE-chT 2019"]
[Site "Patra"]
[Date "2019.07.05"]
[Round "6.19"]
[White "Abelakiotis, Stavros"]
[Black "Stefanou, Dimitrios"]
[Result "1/2-1/2"]
[ECO "C99"]
[WhiteElo "1959"]
[BlackElo "1975"]
[Annotator "NA"]
[PlyCount "107"]
[EventDate "2019.07.02"]
[EventCountry "GRE"]
[SourceTitle "playchess.com"]
[Source "ChessBase"]
[SourceQuality "1"]
[TimeControl "5400+30"]

1. e4 {[%emt 0:01:08]} e5 {[%emt 0:00:00]} 2. Nf3 {[%emt 0:00:47]} Nc6 {[%emt 0:00:00]} 3. Bb5 {[%emt 0:00:30]} a6 {[%emt 0:00:00]} 4. Ba4 {[%emt 0:00:50]} Nf6 {[%emt 0:00:00]} 5. O-O {[%emt 0:00:08]} Be7 {[%emt 0:00:02]} 6. Re1 {[%emt 0:00:13]} b5 {[%emt 0:00:12]} 7. Bb3 {[%emt 0:00:07]} d6 {[%emt 0:00:09]} 8. c3 {[%emt 0:00:35]} O-O {[%emt 0:00:07]} 9. h3 {[%emt 0:00:30]} Na5 {[%emt 0:00:18]} 10. Bc2 {[%emt 0:00:12]} c5 {[%emt 0:00:14]} 11. d4 {[%emt 0:00:59]} Qc7 {[%emt 0:00:10]} 12. Nbd2 {[%emt 0:01:22]} cxd4 {[%emt 0:00:25]} 13. cxd4 {[%emt 0:00:08]} Nc6 {[%emt 0:00:09]} 14. Nb3 {[%emt 0:01:27]} a5 {[%emt 0:00:20]} 15. Be3 {[%emt 0:00:48]} a4 {[%emt 0:00:19]} 16. Nbd2 {[%emt 0:00:24]} Nb4 {[%emt 0:01:32]} 17. Bb1 {[%emt 0:04:17]} Bd7 {[%emt 0:01:09]} 18. a3 {[%emt 0:03:51]} Nc6 {[%emt 0:00:13]} 19. Bd3 {[%emt 0:05:19]} Qb7 {[%emt 0:00:52]} 20. b4 {[%emt 0:16:10]} axb3 {[%emt 0:16:30]} 21. Nxb3 {[%emt 0:01:51]} Rfc8 {[%emt 0:02:27]} 22. d5 {[%emt 0:06:20]} Na5 {[%emt 0:09:24]} 23. Nxa5 {[%emt 0:03:54]} Rxa5 {[%emt 0:00:05]} 24. Qb3 {[%emt 0:01:04]} Rca8 {[%emt 0:05:01]} 25. Bd2 {[%emt 0:07:20]} Ra4 {[%emt 0:02:07]} 26. Bb4 {[%emt 0:01:26]} Bf8 {[%emt 0:05:35]} 27. Rab1 {[%emt 0:05:12]} Ne8 {[%emt 0:03:50]} 28. Rec1 {[%emt 0:10:33]} Nc7 {[%emt 0:09:03]} 29. Rc3 {[%emt 0:05:51]} Qb6 {[%emt 0:08:42]} 30. Qb2 {[%emt 0:03:05]} R4a7 {[%emt 0:05:26]} 31. Rbc1 {[%emt 0:12:00]} Na6 {[%emt 0:03:01]} 32. Nd2 {[%emt 0:00:33]} Be7 {[%emt 0:03:45]} 33. Rb1 {[%emt 0:02:23]} Bd8 {[%emt 0:02:53]} 34. Nf1 {[%emt 0:01:51]} Qb8 {[%emt 0:06:03]} 35. Rb3 {[%emt 0:00:47]} Bb6 {[%emt 0:05:30]} 36. Qe2 {[%emt 0:00:19]} Nxb4 {[%emt 0:02:06]} 37. Rxb4 {[%emt 0:00:05]} Bc5 {[%emt 0:01:36]} 38. R4b3 {[%emt 0:00:28]} Rxa3 {[%emt 0:01:42]} 39. Bxb5 {[%emt 0:03:13]} Rxb3 {[%emt 0:00:28]} 40. Rxb3 {[%emt 0:00:00]} Bxb5 {[%emt 0:00:00]} 41. Rxb5 {[%emt 0:00:00]} Qa7 {[%emt 0:00:00]} 42. Rb2 {[%emt 0:00:00]} g6 {[%emt 0:00:00]} 43. g3 {[%emt 0:00:00]} Qa4 {[%emt 0:00:00]} 44. Kg2 {[%emt 0:00:00]} Qd4 {[%emt 0:00:00]} 45. Rd2 {[%emt 0:00:00]} Qa1 {[%emt 0:00:00]} 46. Rc2 {[%emt 0:00:00]} Ra4 {[%emt 0:00:00]} 47. Nd2 {[%emt 0:00:00]} Rb4 {[%emt 0:00:00]} 48. Qf1 {[%emt 0:00:00]} Qd4 {[%emt 0:00:00]} 49. Qe2 {[%emt 0:14:39]} f5 {[%emt 0:02:58]} 50. Rc4 {[%emt 0:00:00]} Rxc4 {[%emt 0:00:45]} 51. Nxc4 {[%emt 0:00:00]} fxe4 {[%emt 0:01:12]} 52. Ne3 {[%emt 0:00:00]} Qd3 {[%emt 0:05:23]} 53. Qg4 {[%emt 0:00:00]} Bxe3 {[%emt 0:01:13]} 54. Qe6+ {[%emt 0:00:00]} 1/2-1/2

[Event "47th GRE-chT 2019"]
[Site "Patra"]
[Date "2019.07.05"]
[Round "6.20"]
[White "Dristellas, Neoklis"]
[Black "Dimanoudis, Petros"]
[Result "1-0"]
[ECO "B48"]
[WhiteElo "1577"]
[BlackElo "1456"]
[Annotator "NA"]
[PlyCount "57"]
[EventDate "2019.07.02"]
[EventCountry "GRE"]
[SourceTitle "playchess.com"]
[Source "ChessBase"]
[SourceQuality "1"]
[TimeControl "5400+30"]

1. e4 {[%emt 0:00:00]} c5 {[%emt 0:00:00]} 2. Nf3 {[%emt 0:00:00]} e6 {[%emt 0:00:00]} 3. d4 {[%emt 0:00:30]} cxd4 {[%emt 0:00:00]} 4. Nxd4 {[%emt 0:00:40]} Nc6 {[%emt 0:04:11]} 5. Nc3 {[%emt 0:00:50]} Qc7 {[%emt 0:01:45]} 6. Ndb5 {[%emt 0:03:00]} Qb8 {[%emt 0:04:18]} 7. Be3 {[%emt 0:03:00]} a6 {[%emt 0:01:22]} 8. Nd4 {[%emt 0:03:00]} Qc7 {[%emt 0:04:24]} 9. Qd2 {[%emt 0:03:00]} Nf6 {[%emt 0:06:01]} 10. f3 {[%emt 0:03:00]} b5 {[%emt 0:01:45]} 11. Nxc6 {[%emt 0:00:31]} Qxc6 {[%emt 0:08:16]} 12. e5 {[%emt 0:02:59]} b4 {[%emt 0:01:37]} 13. exf6 {[%emt 0:00:30]} bxc3 {[%emt 0:02:41]} 14. bxc3 {[%emt 0:01:01]} gxf6 {[%emt 0:01:17]} 15. Bd3 {[%emt 0:02:59]} Bb7 {[%emt 0:03:55]} 16. Rb1 {[%emt 0:06:30]} d5 {[%emt 0:06:10]} 17. O-O {[%emt 0:03:30]} Bd6 {[%emt 0:05:02]} 18. Qf2 {[%emt 0:06:30]} Qc7 {[%emt 0:02:42]} 19. f4 {[%emt 0:11:30]} Rg8 {[%emt 0:15:00]} 20. Qf3 {[%emt 0:17:31]} Rb8 {[%emt 0:05:29]} 21. Bd4 {[%emt 0:08:14]} e5 {[%emt 0:02:15]} 22. fxe5 {[%emt 0:00:45]} fxe5 {[%emt 0:01:05]} 23. Rbe1 {[%emt 0:00:30]} e4 {[%emt 0:01:40]} 24. Qh5 {[%emt 0:15:30]} Bf4 {[%emt 0:05:11]} 25. Qxh7 {[%emt 0:01:00]} Rg6 {[%emt 0:09:39]} 26. Qh8+ {[%emt 0:05:50]} Ke7 {[%emt 0:01:06]} 27. Qh4+ {[%emt 0:00:12]} Bg5 {[%emt 0:00:57]} 28. Rxf7+ {[%emt 0:00:53]} Kd8 {[%emt 0:00:23]} 29. Qh8+ {[%emt 0:00:36]} 1-0

[Event "47th GRE-chT 2019"]
[Site "Patra"]
[Date "2019.07.05"]
[Round "6.21"]
[White "Mastrovasilis, Dimitrios"]
[Black "Banikas, Hristos"]
[Result "1/2-1/2"]
[ECO "C92"]
[WhiteElo "2589"]
[BlackElo "2601"]
[Annotator "RC"]
[PlyCount "30"]
[EventDate "2019.07.02"]
[EventCountry "GRE"]
[SourceTitle "playchess.com"]
[Source "ChessBase"]
[SourceQuality "1"]
[TimeControl "5400+30"]

1. e4 {[%emt 0:00:26]} e5 {[%emt 0:00:00]} 2. Nf3 {[%emt 0:00:11]} Nc6 {[%emt 0:00:00]} 3. Bb5 {[%emt 0:00:06]} a6 {[%emt 0:00:00]} 4. Ba4 {[%emt 0:00:04]} Nf6 {[%emt 0:00:04]} 5. O-O {[%emt 0:00:07]} Be7 {[%emt 0:00:05]} 6. Re1 {[%emt 0:00:06]} b5 {[%emt 0:00:05]} 7. Bb3 {[%emt 0:00:05]} d6 {[%emt 0:00:05]} 8. c3 {[%emt 0:00:05]} O-O {[%emt 0:00:06]} 9. h3 {[%emt 0:00:05]} Bb7 {[%emt 0:00:04]} 10. d4 {[%emt 0:00:07]} Re8 {[%emt 0:00:06]} 11. Ng5 {[%emt 0:00:05]} Rf8 {[%emt 0:00:06]} 12. Nf3 {[%emt 0:00:04]} Re8 {[%emt 0:00:06]} 13. Ng5 {[%emt 0:00:06]} Rf8 {[%emt 0:00:03]} 14. Nf3 {[%emt 0:00:05]} Re8 {[%emt 0:00:04]} 15. Ng5 {[%emt 0:00:05]} Rf8 {[%emt 0:00:47]} 1/2-1/2

[Event "47th GRE-chT 2019"]
[Site "Patra"]
[Date "2019.07.05"]
[Round "6.22"]
[White "Shoker, Samy"]
[Black "Mastrovasilis, Athanasios"]
[Result "1/2-1/2"]
[ECO "A07"]
[WhiteElo "2496"]
[BlackElo "2518"]
[Annotator "ChessBase"]
[PlyCount "60"]
[EventDate "2019.07.02"]
[EventCountry "GRE"]
[SourceTitle "playchess.com"]
[Source "ChessBase"]
[SourceQuality "1"]
[TimeControl "5400+30"]

1. Nf3 {[%emt 0:00:17]} d5 {[%emt 0:00:00]} 2. g3 {[%emt 0:00:18]} c6 {[%emt 0:00:00]} 3. c4 {[%emt 0:00:29]} Nf6 {[%emt 0:00:00]} 4. d4 {[%emt 0:01:36]} Bg4 {[%emt 0:01:08]} 5. Bg2 {[%emt 0:00:20]} e6 {[%emt 0:00:22]} 6. O-O {[%emt 0:00:18]} Nbd7 {[%emt 0:00:18]} 7. Nc3 {[%emt 0:01:36]} Bd6 {[%emt 0:01:22]} 8. cxd5 {[%emt 0:01:32]} exd5 {[%emt 0:01:57]} 9. Qb3 {[%emt 0:01:05]} Qb6 {[%emt 0:00:38]} 10. Qxb6 {[%emt 0:00:13]} axb6 {[%emt 0:00:32]} 11. a3 {[%emt 0:00:44]} O-O {[%emt 0:00:04]} 12. h3 {[%emt 0:01:50]} Bxf3 {[%emt 0:00:04]} 13. Bxf3 {[%emt 0:00:25]} b5 {[%emt 0:00:08]} 14. Bg5 {[%emt 0:00:37]} h6 {[%emt 0:00:03]} 15. Bxf6 {[%emt 0:00:05]} Nxf6 {[%emt 0:00:30]} 16. e4 {[%emt 0:00:21]} dxe4 {[%emt 0:00:04]} 17. Nxe4 {[%emt 0:00:51]} Nxe4 {[%emt 0:00:04]} 18. Bxe4 {[%emt 0:01:06]} Rfe8 {[%emt 0:00:14]} 19. Bf3 {[%emt 0:02:13]} Ra4 {[%emt 0:03:40]} 20. Rad1 {[%emt 0:01:29]} b4 {[%emt 0:00:04]} 21. axb4 {[%emt 0:00:05]} Rxb4 {[%emt 0:00:06]} 22. Rd2 {[%emt 0:02:02]} Rd8 {[%emt 0:01:51]} 23. Rfd1 {[%emt 0:05:03]} Be7 {[%emt 0:00:26]} 24. d5 {[%emt 0:01:24]} cxd5 {[%emt 0:00:29]} 25. Bxd5 {[%emt 0:00:42]} Kf8 {[%emt 0:00:49]} 26. b3 {[%emt 0:00:23]} Rb6 {[%emt 0:00:15]} 27. Bc4 {[%emt 0:00:16]} Rbd6 {[%emt 0:00:03]} 28. Rxd6 {[%emt 0:00:05]} Rxd6 {[%emt 0:00:03]} 29. Rxd6 {[%emt 0:00:09]} Bxd6 {[%emt 0:00:03]} 30. Bd5 {[%emt 0:00:37]} b6 {[%emt 0:00:30]} 1/2-1/2

[Event "47th GRE-chT 2019"]
[Site "Patra"]
[Date "2019.07.05"]
[Round "6.23"]
[White "Malikentzos, Sotirios"]
[Black "Georgiev, Krum"]
[Result "1-0"]
[ECO "A49"]
[WhiteElo "2428"]
[BlackElo "2323"]
[Annotator "NA"]
[PlyCount "87"]
[EventDate "2019.07.02"]
[EventCountry "GRE"]
[SourceTitle "playchess.com"]
[Source "ChessBase"]
[SourceQuality "1"]
[TimeControl "5400+30"]

1. Nf3 {[%emt 0:03:37]} g6 {[%emt 0:00:00]} 2. g3 {[%emt 0:00:15]} Bg7 {[%emt 0:00:00]} 3. d4 {[%emt 0:00:07]} d6 {[%emt 0:00:07]} 4. Bg2 {[%emt 0:00:04]} Nf6 {[%emt 0:00:38]} 5. O-O {[%emt 0:00:07]} O-O {[%emt 0:00:08]} 6. b3 {[%emt 0:00:04]} c6 {[%emt 0:04:29]} 7. Bb2 {[%emt 0:00:25]} Qa5 {[%emt 0:00:11]} 8. Ne1 {[%emt 0:04:07]} Bf5 {[%emt 0:28:33]} 9. Nd2 {[%emt 0:05:52]} d5 {[%emt 0:00:20]} 10. c4 {[%emt 0:02:39]} Nbd7 {[%emt 0:04:21]} 11. Nc2 {[%emt 0:07:56]} Bh6 {[%emt 0:14:55]} 12. e3 {[%emt 0:11:11]} Rad8 {[%emt 0:05:22]} 13. Re1 {[%emt 0:05:22]} Rfe8 {[%emt 0:02:36]} 14. h3 {[%emt 0:06:57]} Bg7 {[%emt 0:08:18]} 15. g4 {[%emt 0:04:36]} Bd3 {[%emt 0:00:28]} 16. a3 {[%emt 0:01:15]} Ne4 {[%emt 0:10:07]} 17. Nb4 {[%emt 0:09:41]} Nxd2 {[%emt 0:00:35]} 18. Qxd2 {[%emt 0:09:56]} dxc4 {[%emt 0:01:01]} 19. Rec1 {[%emt 0:03:13]} Nb6 {[%emt 0:06:25]} 20. Bc3 {[%emt 0:01:05]} Qg5 {[%emt 0:00:08]} 21. f4 {[%emt 0:02:04]} Qh4 {[%emt 0:00:42]} 22. Qe1 {[%emt 0:08:23]} Qxe1+ {[%emt 0:00:55]} 23. Bxe1 {[%emt 0:00:14]} c5 {[%emt 0:01:18]} 24. Nxd3 {[%emt 0:06:41]} cxd3 {[%emt 0:00:05]} 25. Bxb7 {[%emt 0:01:24]} cxd4 {[%emt 0:07:41]} 26. e4 {[%emt 0:00:04]} e5 {[%emt 0:00:08]} 27. f5 {[%emt 0:01:42]} Bh6 {[%emt 0:00:09]} 28. Rd1 {[%emt 0:00:35]} Rb8 {[%emt 0:00:47]} 29. Ba6 {[%emt 0:00:25]} Nc8 {[%emt 0:02:33]} 30. Rab1 {[%emt 0:03:08]} d2 {[%emt 0:00:38]} 31. Bxd2 {[%emt 0:00:22]} Bxd2 {[%emt 0:00:03]} 32. Rxd2 {[%emt 0:00:03]} Nd6 {[%emt 0:00:15]} 33. Bd3 {[%emt 0:00:58]} Rec8 {[%emt 0:00:05]} 34. b4 {[%emt 0:01:16]} Rc3 {[%emt 0:01:06]} 35. a4 {[%emt 0:00:05]} a5 {[%emt 0:00:20]} 36. b5 {[%emt 0:01:17]} Nc8 {[%emt 0:00:15]} 37. Bc2 {[%emt 0:00:37]} gxf5 {[%emt 0:01:47]} 38. gxf5 {[%emt 0:00:08]} Kg7 {[%emt 0:00:16]} 39. Rb3 {[%emt 0:00:28]} Rc7 {[%emt 0:00:42]} 40. Rg3+ {[%emt 0:00:00]} Kf6 {[%emt 0:00:00]} 41. Rg8 {[%emt 0:00:00]} Rcb7 {[%emt 0:00:00]} 42. Rh8 {[%emt 0:00:00]} Kg7 {[%emt 0:00:00]} 43. Rd8 {[%emt 0:00:00]} Rb6 {[%emt 0:00:00]} 44. Rg2+ {[%emt 0:00:00]} 1-0

[Event "47th GRE-chT 2019"]
[Site "Patra"]
[Date "2019.07.05"]
[Round "6.24"]
[White "Alexiadis, Hristos"]
[Black "Kalogeris, Ioannis"]
[Result "1-0"]
[ECO "E06"]
[WhiteElo "2344"]
[BlackElo "2376"]
[Annotator "NA"]
[PlyCount "61"]
[EventDate "2019.07.02"]
[EventCountry "GRE"]
[SourceTitle "playchess.com"]
[Source "ChessBase"]
[SourceQuality "1"]
[TimeControl "5400+30"]

1. d4 {[%emt 0:08:06]} Nf6 {[%emt 0:00:00]} 2. c4 {[%emt 0:00:07]} e6 {[%emt 0:00:00]} 3. g3 {[%emt 0:00:06]} d5 {[%emt 0:00:00]} 4. Bg2 {[%emt 0:00:16]} Be7 {[%emt 0:00:00]} 5. Nf3 {[%emt 0:00:11]} O-O {[%emt 0:00:00]} 6. O-O {[%emt 0:00:05]} c6 {[%emt 0:00:24]} 7. Qc2 {[%emt 0:00:35]} b6 {[%emt 0:00:07]} 8. Nbd2 {[%emt 0:02:14]} Bb7 {[%emt 0:00:07]} 9. e4 {[%emt 0:02:08]} Na6 {[%emt 0:00:57]} 10. a3 {[%emt 0:01:38]} dxc4 {[%emt 0:06:12]} 11. e5 {[%emt 0:00:40]} Nd5 {[%emt 0:01:15]} 12. Nxc4 {[%emt 0:04:44]} c5 {[%emt 0:04:46]} 13. dxc5 {[%emt 0:00:33]} Nxc5 {[%emt 0:00:16]} 14. b4 {[%emt 0:02:07]} Nd7 {[%emt 0:08:59]} 15. Bb2 {[%emt 0:04:19]} Rc8 {[%emt 0:00:49]} 16. Qe2 {[%emt 0:00:40]} Qc7 {[%emt 0:00:14]} 17. Rac1 {[%emt 0:00:42]} Qb8 {[%emt 0:08:54]} 18. Nd4 {[%emt 0:15:21]} Qa8 {[%emt 0:00:12]} 19. f4 {[%emt 0:00:28]} a5 {[%emt 0:11:38]} 20. b5 {[%emt 0:09:16]} Rc5 {[%emt 0:13:25]} 21. f5 {[%emt 0:03:48]} Bg5 {[%emt 0:00:06]} 22. fxe6 {[%emt 0:19:36]} Bxc1 {[%emt 0:01:12]} 23. Rxc1 {[%emt 0:17:44]} Rxc4 {[%emt 0:01:01]} 24. Rxc4 {[%emt 0:01:26]} Nc5 {[%emt 0:00:06]} 25. exf7+ {[%emt 0:00:11]} Rxf7 {[%emt 0:00:10]} 26. e6 {[%emt 0:00:24]} Re7 {[%emt 0:05:43]} 27. Rxc5 {[%emt 0:00:25]} bxc5 {[%emt 0:00:06]} 28. Nf5 {[%emt 0:03:06]} Qe8 {[%emt 0:00:14]} 29. Nxe7+ {[%emt 0:00:02]} Qxe7 {[%emt 0:00:33]} 30. Qe5 {[%emt 0:02:21]} Nf6 {[%emt 0:00:07]} 31. Qb8+ {[%emt 0:00:34]} 1-0

[Event "47th GRE-chT 2019"]
[Site "Patra"]
[Date "2019.07.05"]
[Round "6.26"]
[White "Louka, Magdalini"]
[Black "Pasoglou, Ekaterini"]
[Result "1/2-1/2"]
[ECO "B92"]
[WhiteElo "1766"]
[BlackElo "1804"]
[Annotator "NA"]
[PlyCount "102"]
[EventDate "2019.07.02"]
[EventCountry "GRE"]
[SourceTitle "playchess.com"]
[Source "ChessBase"]
[SourceQuality "1"]
[TimeControl "5400+30"]

1. e4 {[%emt 0:00:00]} c5 {[%emt 0:02:26]} 2. Nf3 {[%emt 0:00:00]} d6 {[%emt 0:01:04]} 3. d4 {[%emt 0:00:00]} Nf6 {[%emt 0:00:54]} 4. Nc3 {[%emt 0:00:13]} cxd4 {[%emt 0:00:10]} 5. Nxd4 {[%emt 0:00:11]} a6 {[%emt 0:01:18]} 6. Be3 {[%emt 0:00:19]} e5 {[%emt 0:03:13]} 7. Nb3 {[%emt 0:00:44]} Be6 {[%emt 0:03:53]} 8. Be2 {[%emt 0:01:50]} Be7 {[%emt 0:00:25]} 9. O-O {[%emt 0:00:36]} O-O {[%emt 0:02:34]} 10. Bf3 {[%emt 0:02:37]} Nbd7 {[%emt 0:02:32]} 11. a4 {[%emt 0:05:11]} Nb6 {[%emt 0:04:12]} 12. Re1 {[%emt 0:02:56]} Rc8 {[%emt 0:12:28]} 13. Bc1 {[%emt 0:09:51]} Nc4 {[%emt 0:12:35]} 14. Qd3 {[%emt 0:11:38]} Qc7 {[%emt 0:03:41]} 15. Nd5 {[%emt 0:03:26]} Nxd5 {[%emt 0:00:10]} 16. exd5 {[%emt 0:01:09]} Bd7 {[%emt 0:01:41]} 17. g3 {[%emt 0:05:11]} f5 {[%emt 0:00:42]} 18. Bg2 {[%emt 0:03:21]} Bf6 {[%emt 0:00:58]} 19. c3 {[%emt 0:04:39]} Rce8 {[%emt 0:06:22]} 20. Bf1 {[%emt 0:04:46]} Rc8 {[%emt 0:01:48]} 21. Bg2 {[%emt 0:03:03]} e4 {[%emt 0:01:43]} 22. Qd1 {[%emt 0:01:47]} Ne5 {[%emt 0:02:13]} 23. Be3 {[%emt 0:06:09]} g5 {[%emt 0:04:32]} 24. f4 {[%emt 0:11:52]} gxf4 {[%emt 0:00:54]} 25. gxf4 {[%emt 0:06:20]} Nd3 {[%emt 0:01:54]} 26. Re2 {[%emt 0:00:45]} Qd8 {[%emt 0:04:46]} 27. Nc1 {[%emt 0:00:54]} Nxc1 {[%emt 0:01:39]} 28. Rxc1 {[%emt 0:00:47]} Qe8 {[%emt 0:02:21]} 29. Bh3 {[%emt 0:08:07]} Kh8 {[%emt 0:07:18]} 30. Rg2 {[%emt 0:01:54]} Bxa4 {[%emt 0:00:59]} 31. b3 {[%emt 0:00:03]} Bd7 {[%emt 0:01:11]} 32. Bd4 {[%emt 0:00:05]} Qf7 {[%emt 0:03:45]} 33. c4 {[%emt 0:00:51]} Rg8 {[%emt 0:01:40]} 34. Rc3 {[%emt 0:00:45]} Rxg2+ {[%emt 0:03:08]} 35. Bxg2 {[%emt 0:00:30]} Bxd4+ {[%emt 0:00:15]} 36. Qxd4+ {[%emt 0:00:05]} Qg7 {[%emt 0:00:56]} 37. Qxg7+ {[%emt 0:00:05]} Kxg7 {[%emt 0:01:19]} 38. Rg3+ {[%emt 0:02:50]} Kf7 {[%emt 0:00:21]} 39. Rh3 {[%emt 0:00:59]} Rh8 {[%emt 0:00:00]} 40. Rh6 {[%emt 0:00:00]} Ke7 {[%emt 0:00:00]} 41. Bh3 {[%emt 0:00:00]} Rg8+ {[%emt 0:00:00]} 42. Kf2 {[%emt 0:00:00]} Rg7 {[%emt 0:00:00]} 43. Rh5 {[%emt 0:00:00]} Rf7 {[%emt 0:00:00]} 44. Rh6 {[%emt 0:00:00]} Bc8 {[%emt 0:00:00]} 45. Ke3 {[%emt 0:00:00]} Kd7 {[%emt 0:00:00]} 46. Ke2 {[%emt 0:00:00]} Kc7 {[%emt 0:00:00]} 47. Kf2 {[%emt 0:00:00]} b5 {[%emt 0:00:00]} 48. cxb5 {[%emt 0:00:00]} axb5 {[%emt 0:00:00]} 49. b4 {[%emt 0:00:00]} Bb7 {[%emt 0:00:00]} 50. Rh5 {[%emt 0:00:00]} Bc8 {[%emt 0:00:00]} 51. Rh6 {[%emt 0:00:00]} Bb7 {[%emt 0:00:00]} 1/2-1/2

[Event "47th GRE-chT 2019"]
[Site "Patra"]
[Date "2019.07.05"]
[Round "6.27"]
[White "Pasoglou, Nikoleta"]
[Black "Kouta, Antonia"]
[Result "0-1"]
[ECO "E14"]
[WhiteElo "1258"]
[BlackElo "1762"]
[Annotator "NA"]
[PlyCount "138"]
[EventDate "2019.07.02"]
[EventCountry "GRE"]
[SourceTitle "playchess.com"]
[Source "ChessBase"]
[SourceQuality "1"]
[TimeControl "5400+30"]

1. d4 {[%emt 0:00:00]} Nf6 {[%emt 0:00:00]} 2. Nf3 {[%emt 0:00:00]} e6 {[%emt 0:00:04]} 3. e3 {[%emt 0:00:00]} c5 {[%emt 0:07:12]} 4. Bd3 {[%emt 0:00:19]} Nc6 {[%emt 0:02:26]} 5. b3 {[%emt 0:03:03]} b6 {[%emt 0:02:27]} 6. Bb2 {[%emt 0:00:58]} Bb7 {[%emt 0:04:04]} 7. O-O {[%emt 0:00:52]} Be7 {[%emt 0:04:33]} 8. Nbd2 {[%emt 0:01:03]} O-O {[%emt 0:03:56]} 9. c4 {[%emt 0:03:40]} cxd4 {[%emt 0:05:38]} 10. exd4 {[%emt 0:00:41]} d5 {[%emt 0:00:38]} 11. a3 {[%emt 0:08:13]} Rc8 {[%emt 0:04:45]} 12. Rc1 {[%emt 0:02:38]} dxc4 {[%emt 0:06:56]} 13. bxc4 {[%emt 0:00:19]} Bd6 {[%emt 0:04:10]} 14. Qe2 {[%emt 0:16:04]} Qe7 {[%emt 0:03:33]} 15. Ra1 {[%emt 0:03:09]} Rfd8 {[%emt 0:07:35]} 16. Rfe1 {[%emt 0:13:37]} Re8 {[%emt 0:10:36]} 17. Ne5 {[%emt 0:04:27]} Bb8 {[%emt 0:03:30]} 18. Nxc6 {[%emt 0:14:19]} Bxc6 {[%emt 0:01:16]} 19. d5 {[%emt 0:04:40]} Qd6 {[%emt 0:05:23]} 20. Be5 {[%emt 0:02:08]} Qxe5 {[%emt 0:00:36]} 21. Qxe5 {[%emt 0:00:08]} Bxe5 {[%emt 0:00:08]} 22. Rxe5 {[%emt 0:01:43]} exd5 {[%emt 0:00:28]} 23. Rae1 {[%emt 0:07:24]} Rxe5 {[%emt 0:01:49]} 24. Rxe5 {[%emt 0:00:08]} dxc4 {[%emt 0:02:07]} 25. Bxc4 {[%emt 0:00:54]} Re8 {[%emt 0:01:38]} 26. Rxe8+ {[%emt 0:03:22]} Nxe8 {[%emt 0:00:43]} 27. f3 {[%emt 0:01:00]} Nd6 {[%emt 0:00:43]} 28. Bd3 {[%emt 0:03:34]} Kf8 {[%emt 0:03:58]} 29. Kf2 {[%emt 0:00:26]} Ke7 {[%emt 0:01:05]} 30. Ke3 {[%emt 0:00:54]} Nb5 {[%emt 0:04:07]} 31. Nc4 {[%emt 0:01:41]} Nc7 {[%emt 0:02:41]} 32. Ne5 {[%emt 0:01:11]} Bd5 {[%emt 0:02:03]} 33. Kd4 {[%emt 0:03:22]} Kd6 {[%emt 0:02:07]} 34. Nc4+ {[%emt 0:00:31]} Kc6 {[%emt 0:01:43]} 35. Ne3 {[%emt 0:00:28]} Be6 {[%emt 0:00:39]} 36. Kc3 {[%emt 0:00:32]} Nb5+ {[%emt 0:00:43]} 37. Kb2 {[%emt 0:00:30]} Kc5 {[%emt 0:00:38]} 38. Nc2 {[%emt 0:00:30]} Nd6 {[%emt 0:00:29]} 39. Kc3 {[%emt 0:00:25]} b5 {[%emt 0:00:53]} 40. Nd4 {[%emt 0:00:00]} Bd5 {[%emt 0:00:00]} 41. Nc2 {[%emt 0:00:00]} Nc4 {[%emt 0:00:00]} 42. Bf5 {[%emt 0:00:00]} a5 {[%emt 0:00:00]} 43. Bd3 {[%emt 0:00:00]} Ne5 {[%emt 0:00:00]} 44. Bf5 {[%emt 0:00:00]} g6 {[%emt 0:00:00]} 45. Bd3 {[%emt 0:00:00]} Nc6 {[%emt 0:00:00]} 46. Be2 {[%emt 0:00:00]} b4+ {[%emt 0:00:00]} 47. axb4+ {[%emt 0:00:03]} axb4+ {[%emt 0:00:00]} 48. Kb2 {[%emt 0:00:17]} Ne5 {[%emt 0:00:00]} 49. Bd1 {[%emt 0:04:26]} Nc4+ {[%emt 0:03:37]} 50. Kc1 {[%emt 0:00:21]} b3 {[%emt 0:00:54]} 51. Ne1 {[%emt 0:00:29]} Kb4 {[%emt 0:00:32]} 52. Bxb3 {[%emt 0:00:56]} Kxb3 {[%emt 0:00:07]} 53. Kd1 {[%emt 0:00:06]} Kc3 {[%emt 0:00:41]} 54. Ke2 {[%emt 0:00:15]} Ne5 {[%emt 0:01:05]} 55. Ke3 {[%emt 0:00:53]} Nc4+ {[%emt 0:00:22]} 56. Ke2 {[%emt 0:00:35]} Nd6 {[%emt 0:00:30]} 57. Kf2 {[%emt 0:00:44]} Kd2 {[%emt 0:01:12]} 58. g3 {[%emt 0:00:19]} Nf5 {[%emt 0:00:52]} 59. Ng2 {[%emt 0:00:34]} Nd4 {[%emt 0:00:22]} 60. f4 {[%emt 0:00:19]} Be6 {[%emt 0:00:45]} 61. Ne3 {[%emt 0:00:45]} Kd3 {[%emt 0:00:12]} 62. Ng2 {[%emt 0:00:31]} Ke4 {[%emt 0:00:15]} 63. Nh4 {[%emt 0:00:31]} Bh3 {[%emt 0:00:35]} 64. Ng2 {[%emt 0:00:28]} Nf3 {[%emt 0:00:26]} 65. Ne1 {[%emt 0:00:32]} Nxe1 {[%emt 0:00:20]} 66. Kxe1 {[%emt 0:00:04]} Kf3 {[%emt 0:00:03]} 67. Kd2 {[%emt 0:00:11]} Kg2 {[%emt 0:00:19]} 68. Ke3 {[%emt 0:00:14]} Kxh2 {[%emt 0:00:34]} 69. Kf2 {[%emt 0:00:18]} Bg4 {[%emt 0:00:27]} 0-1